[Event "VII Totalizator Sportowy 2022"]
[Site "Bydgoszcz"]
[Date "2022.07.02"]
[Round "8.18"]
[White "Stolarczyk, Adam"]
[Black "Dubnevych, Maksym"]
[Result "1-0"]
[ECO "B30"]
[WhiteElo "2125"]
[BlackElo "2048"]
[Annotator "NA RC"]
[PlyCount "71"]
[EventDate "2022.06.25"]
[EventType "swiss"]
[EventCountry "POL"]
[SourceTitle "playchess.com"]
[Source "ChessBase"]
[SourceQuality "1"]
[TimeControl "40/5400+30:1800+30"]

1. e4 {[%emt 0:00:04]} c5 {[%emt 0:00:02]} 2. Nf3 {[%emt 0:00:12]} Nc6 {[%emt 0:00:05]} 3. c3 {[%emt 0:00:10]} Nf6 {[%emt 0:00:10]} 4. e5 {[%emt 0:00:12]} Nd5 {[%emt 0:00:03]} 5. Bc4 {[%emt 0:00:17]} Nb6 {[%emt 0:00:16]} 6. Bb3 {[%emt 0:00:18]} d5 {[%emt 0:00:07]} 7. exd6 {[%emt 0:00:13]} Qxd6 {[%emt 0:00:06]} 8. Na3 {[%emt 0:00:23]} a6 {[%emt 0:09:07]} 9. O-O {[%emt 0:04:20]} Be6 {[%emt 0:07:01]} 10. Bxe6 {[%emt 0:02:38]} Qxe6 {[%emt 0:00:09]} 11. d4 {[%emt 0:00:08]} cxd4 {[%emt 0:00:18]} 12. Nxd4 {[%emt 0:00:28]} Nxd4 {[%emt 0:00:35]} 13. Qxd4 {[%emt 0:00:09]} Rd8 {[%emt 0:00:21]} 14. Qe3 {[%emt 0:05:39]} Qc6 {[%emt 0:03:44]} 15. Nc2 {[%emt 0:01:58]} Nd5 {[%emt 0:21:46]} 16. Qg3 {[%emt 0:02:42]} g6 {[%emt 0:02:42]} 17. Rd1 {[%emt 0:07:34]} e6 {[%emt 0:35:45]} 18. Bg5 {[%emt 0:08:24]} f6 {[%emt 0:04:44]} 19. Nd4 {[%emt 0:00:51]} Qd7 {[%emt 0:10:07]} 20. Nxe6 {[%emt 0:00:59]} Nf4 {[%emt 0:01:20]} 21. Qf3 {[%emt 0:01:50]} Qxe6 {[%emt 0:01:47]} 22. Rxd8+ Kxd8 {[%emt 0:00:01]} 23. Bxf4 {[%emt 0:00:58]} Kc8 {[%emt 0:00:45]} 24. c4 {[%emt 0:03:11]} Bd6 {[%emt 0:00:28]} 25. Bxd6 {[%emt 0:00:32]} Qxd6 {[%emt 0:00:01]} 26. Rd1 {[%emt 0:00:33]} Re8 {[%emt 0:00:15]} 27. h3 {[%emt 0:00:32]} Qe5 {[%emt 0:00:33]} 28. b4 {[%emt 0:02:36]} f5 {[%emt 0:00:16]} 29. c5 {[%emt 0:00:53]} Kc7 {[%emt 0:01:23]} 30. Qd3 {[%emt 0:01:07]} Qe6 {[%emt 0:00:31]} 31. a4 {[%emt 0:00:21]} f4 {[%emt 0:00:58]} 32. b5 {[%emt 0:00:36]} axb5 {[%emt 0:00:25]} 33. axb5 {[%emt 0:00:52]} Ra8 {[%emt 0:00:36]} 34. Qf3 {[%emt 0:01:15]} Rf8 {[%emt 0:00:30]} 35. b6+ {[%emt 0:00:16]} Kc8 {[%emt 0:00:02]} 36. Qa3 {[%emt 0:00:33]} 1-0

[Event "VII Totalizator Sportowy 2022"]
[Site "Bydgoszcz"]
[Date "2022.07.02"]
[Round "8.19"]
[White "Syrkiewicz, Michal"]
[Black "Perkampus, Laurin"]
[Result "1/2-1/2"]
[ECO "B12"]
[WhiteElo "2000"]
[BlackElo "2061"]
[Annotator "NA RC"]
[PlyCount "54"]
[EventDate "2022.06.25"]
[EventType "swiss"]
[EventCountry "POL"]
[SourceTitle "playchess.com"]
[Source "ChessBase"]
[SourceQuality "1"]
[TimeControl "40/5400+30:1800+30"]

1. e4 {[%emt 0:00:02]} c6 {[%emt 0:02:09]} 2. d4 {[%emt 0:00:53]} d5 {[%emt 0:00:05]} 3. f3 {[%emt 0:00:02]} g6 {[%emt 0:00:22]} 4. Nc3 {[%emt 0:00:36]} Bg7 {[%emt 0:00:33]} 5. Be3 {[%emt 0:01:06]} Qb6 {[%emt 0:01:13]} 6. Na4 {[%emt 0:01:02]} Qa5+ {[%emt 0:02:09]} 7. c3 {[%emt 0:01:19]} Nd7 {[%emt 0:03:43]} 8. b4 {[%emt 0:02:46]} Qc7 {[%emt 0:04:59]} 9. e5 {[%emt 0:01:55]} f6 {[%emt 0:20:33]} 10. f4 {[%emt 0:02:35]} Nh6 {[%emt 0:01:29]} 11. Bd3 {[%emt 0:02:07]} fxe5 {[%emt 0:16:12]} 12. fxe5 {[%emt 0:00:20]} Nxe5 {[%emt 0:04:48]} 13. dxe5 {[%emt 0:02:32]} Qxe5 {[%emt 0:00:05]} 14. Qe2 {[%emt 0:12:01]} Bg4 {[%emt 0:07:11]} 15. Nf3 {[%emt 0:02:27]} Bxf3 {[%emt 0:09:09]} 16. gxf3 {[%emt 0:00:42]} b5 {[%emt 0:07:19]} 17. Bxh6 {[%emt 0:04:28]} Qxe2+ {[%emt 0:02:07]} 18. Kxe2 {[%emt 0:02:20]} Bxh6 {[%emt 0:00:37]} 19. Nc5 {[%emt 0:00:13]} Bg7 {[%emt 0:00:05]} 20. Kd2 {[%emt 0:01:21]} O-O {[%emt 0:00:20]} 21. Rhf1 {[%emt 0:02:08]} Be5 {[%emt 0:00:35]} 22. h3 {[%emt 0:02:37]} a5 {[%emt 0:01:08]} 23. Rfe1 {[%emt 0:05:05]} Bf6 {[%emt 0:04:00]} 24. a3 {[%emt 0:02:00]} Bg5+ {[%emt 0:02:20]} 25. Ke2 {[%emt 0:01:20]} Bf6 {[%emt 0:00:56]} 26. Kd2 {[%emt 0:13:58]} Bg5+ {[%emt 0:00:18]} 27. Ke2 {[%emt 0:03:28]} Bf6 {[%emt 0:00:51]} 1/2-1/2

[Event "VII Totalizator Sportowy 2022"]
[Site "Bydgoszcz"]
[Date "2022.07.02"]
[Round "8.20"]
[White "Jarocka, Liwia"]
[Black "Dzhuguryan, Tygran"]
[Result "0-1"]
[ECO "E10"]
[WhiteElo "2006"]
[BlackElo "2203"]
[Annotator "RC"]
[PlyCount "86"]
[EventDate "2022.06.25"]
[EventType "swiss"]
[EventCountry "POL"]
[SourceTitle "playchess.com"]
[Source "ChessBase"]
[SourceQuality "1"]
[TimeControl "40/5400+30:1800+30"]

1. d4 {[%emt 0:00:04]} Nf6 {[%emt 0:00:07]} 2. c4 {[%emt 0:00:09]} e6 {[%emt 0:00:08]} 3. Nf3 {[%emt 0:00:21]} d5 {[%emt 0:00:17]} 4. g3 {[%emt 0:00:15]} Bb4+ {[%emt 0:00:17]} 5. Bd2 {[%emt 0:00:41]} Be7 {[%emt 0:00:07]} 6. Bg2 {[%emt 0:00:11]} O-O {[%emt 0:00:17]} 7. O-O {[%emt 0:00:09]} dxc4 {[%emt 0:01:44]} 8. Qc2 {[%emt 0:02:19]} a6 {[%emt 0:01:17]} 9. a4 {[%emt 0:03:56]} Bd7 {[%emt 0:00:07]} 10. Ne5 {[%emt 0:01:48]} Bc6 {[%emt 0:13:36]} 11. Nxc6 {[%emt 0:00:40]} Nxc6 {[%emt 0:00:06]} 12. e3 {[%emt 0:01:36]} Nd5 {[%emt 0:00:27]} 13. Qxc4 {[%emt 0:01:01]} a5 {[%emt 0:00:08]} 14. Nc3 {[%emt 0:01:50]} Ncb4 {[%emt 0:00:24]} 15. Qe2 {[%emt 0:04:12]} c6 {[%emt 0:01:44]} 16. e4 {[%emt 0:02:08]} Nf6 {[%emt 0:00:03]} 17. Be3 {[%emt 0:00:11]} Re8 {[%emt 0:03:16]} 18. Rad1 {[%emt 0:02:30]} Bf8 {[%emt 0:00:10]} 19. g4 {[%emt 0:08:26]} Qc7 {[%emt 0:04:21]} 20. h4 {[%emt 0:09:15]} Rad8 {[%emt 0:05:20]} 21. h5 {[%emt 0:07:02]} e5 {[%emt 0:07:21]} 22. dxe5 {[%emt 0:02:24]} Qxe5 {[%emt 0:00:03]} 23. g5 {[%emt 0:03:13]} Nd7 {[%emt 0:00:26]} 24. f4 {[%emt 0:00:16]} Qc7 {[%emt 0:02:13]} 25. e5 {[%emt 0:03:05]} Nc5 {[%emt 0:02:28]} 26. Bxc5 {[%emt 0:04:28]} Bxc5+ {[%emt 0:00:03]} 27. Kh1 {[%emt 0:00:14]} Rxd1 {[%emt 0:04:55]} 28. Rxd1 {[%emt 0:13:33]} Rd8 {[%emt 0:00:09]} 29. Ne4 {[%emt 0:01:16]} Bf8 {[%emt 0:00:37]} 30. Rg1 {[%emt 0:04:31]} Nd3 {[%emt 0:04:25]} 31. Qg4 {[%emt 0:01:54]} Rd4 {[%emt 0:07:30]} 32. Qg3 {[%emt 0:04:10]} Kh8 {[%emt 0:05:18]} 33. Qe3 {[%emt 0:04:42]} Qd7 {[%emt 0:01:47]} 34. g6 {[%emt 0:00:49]} Qf5 {[%emt 0:16:41]} 35. Rf1 {[%emt 0:07:46]} Qxh5+ {[%emt 0:02:01]} 36. Kg1 {[%emt 0:00:15]} Rxe4 {[%emt 0:00:35]} 37. Qxd3 {[%emt 0:00:56]} Bc5+ {[%emt 0:00:16]} 38. Rf2 {[%emt 0:00:04]} Bxf2+ {[%emt 0:01:24]} 39. Kxf2 {[%emt 0:00:22]} Rxf4+ {[%emt 0:00:09]} 40. Kg1 {[%emt 0:00:00]} hxg6 {[%emt 0:00:00]} 41. Qd6 {[%emt 0:03:35]} Qf5 {[%emt 0:01:10]} 42. Qb8+ {[%emt 0:00:20]} Kh7 {[%emt 0:00:07]} 43. Qxb7 {[%emt 0:00:05]} Qxe5 {[%emt 0:00:14]} 0-1

[Event "VII Totalizator Sportowy 2022"]
[Site "Bydgoszcz"]
[Date "2022.07.02"]
[Round "8.21"]
[White "Ratajczak, Hubert"]
[Black "Starosciak, Szymon"]
[Result "1-0"]
[ECO "A25"]
[WhiteElo "1899"]
[BlackElo "1901"]
[Annotator "NA RC"]
[PlyCount "51"]
[EventDate "2022.06.25"]
[EventType "swiss"]
[EventCountry "POL"]
[SourceTitle "playchess.com"]
[Source "ChessBase"]
[SourceQuality "1"]
[TimeControl "40/5400+30:1800+30"]

1. c4 {[%emt 0:00:06]} e5 {[%emt 0:00:19]} 2. Nc3 {[%emt 0:00:08]} Nc6 {[%emt 0:00:32]} 3. g3 {[%emt 0:00:23]} g6 {[%emt 0:00:24]} 4. Bg2 {[%emt 0:00:29]} Bg7 {[%emt 0:00:12]} 5. e3 {[%emt 0:00:21]} Nf6 {[%emt 0:08:36]} 6. Nge2 {[%emt 0:01:08]} O-O {[%emt 0:04:11]} 7. O-O {[%emt 0:00:45]} d6 {[%emt 0:03:54]} 8. d4 {[%emt 0:01:12]} exd4 {[%emt 0:06:19]} 9. exd4 {[%emt 0:00:15]} Re8 {[%emt 0:01:39]} 10. h3 {[%emt 0:02:30]} Bf5 {[%emt 0:04:30]} 11. Be3 {[%emt 0:05:14]} Ne4 {[%emt 0:05:44]} 12. g4 {[%emt 0:02:00]} Nxc3 {[%emt 0:00:35]} 13. Nxc3 {[%emt 0:00:02]} Bc8 {[%emt 0:08:06]} 14. Rc1 {[%emt 0:05:59]} f5 {[%emt 0:02:57]} 15. Nd5 {[%emt 0:02:06]} fxg4 {[%emt 0:03:59]} 16. hxg4 {[%emt 0:00:55]} Qh4 {[%emt 0:03:43]} 17. Nxc7 {[%emt 0:02:49]} Bxg4 {[%emt 0:01:18]} 18. Qd3 {[%emt 0:03:10]} Nxd4 {[%emt 0:11:21]} 19. Bxd4 {[%emt 0:01:19]} Be2 {[%emt 0:01:41]} 20. Bd5+ {[%emt 0:00:20]} Kh8 {[%emt 0:01:24]} 21. Bxg7+ {[%emt 0:00:02]} Kxg7 {[%emt 0:00:03]} 22. Nxe8+ {[%emt 0:00:09]} Rxe8 {[%emt 0:00:04]} 23. Qg3 {[%emt 0:00:51]} Qf6 {[%emt 0:00:54]} 24. Qc3 {[%emt 0:02:06]} Re5 {[%emt 0:00:54]} 25. f4 {[%emt 0:00:34]} Bxf1 {[%emt 0:00:48]} 26. fxe5 {[%emt 0:00:15]} 1-0

[Event "VII Totalizator Sportowy 2022"]
[Site "Bydgoszcz"]
[Date "2022.07.02"]
[Round "8.22"]
[White "Kolodziejski, Piotr"]
[Black "Zalega, Maciej"]
[Result "1-0"]
[ECO "B67"]
[WhiteElo "2107"]
[BlackElo "2051"]
[Annotator "NA RC"]
[PlyCount "79"]
[EventDate "2022.06.25"]
[EventType "swiss"]
[EventCountry "POL"]
[SourceTitle "playchess.com"]
[Source "ChessBase"]
[SourceQuality "1"]
[TimeControl "40/5400+30:1800+30"]

1. e4 {[%emt 0:00:03]} c5 {[%emt 0:00:05]} 2. Ne2 {[%emt 0:00:17]} Nc6 {[%emt 0:00:25]} 3. d4 {[%emt 0:00:08]} cxd4 {[%emt 0:00:04]} 4. Nxd4 {[%emt 0:00:05]} Nf6 {[%emt 0:00:03]} 5. Nc3 {[%emt 0:00:05]} d6 {[%emt 0:00:04]} 6. Bg5 {[%emt 0:00:05]} e6 {[%emt 0:00:03]} 7. Qd2 {[%emt 0:00:06]} a6 {[%emt 0:00:02]} 8. O-O-O {[%emt 0:00:06]} Bd7 {[%emt 0:00:02]} 9. f3 {[%emt 0:00:10]} Be7 {[%emt 0:00:21]} 10. Kb1 {[%emt 0:00:17]} Qc7 {[%emt 0:03:42]} 11. h4 {[%emt 0:00:17]} h6 {[%emt 0:00:58]} 12. Be3 {[%emt 0:00:04]} h5 {[%emt 0:00:09]} 13. Bg5 {[%emt 0:00:05]} Nxd4 {[%emt 0:00:04]} 14. Qxd4 {[%emt 0:00:05]} b5 {[%emt 0:00:08]} 15. Ne2 {[%emt 0:00:49]} Rb8 {[%emt 0:04:26]} 16. Qd3 {[%emt 0:00:22]} a5 {[%emt 0:06:37]} 17. Nd4 {[%emt 0:00:26]} O-O {[%emt 0:03:08]} 18. g3 {[%emt 0:09:18]} Rfc8 {[%emt 0:09:20]} 19. c3 {[%emt 0:08:44]} b4 {[%emt 0:04:57]} 20. c4 {[%emt 0:03:30]} a4 {[%emt 0:11:48]} 21. Rc1 {[%emt 0:06:44]} Qb7 {[%emt 0:06:05]} 22. Bh3 {[%emt 0:14:38]} Rc7 {[%emt 0:10:16]} 23. Rhd1 {[%emt 0:01:08]} Rbc8 {[%emt 0:01:56]} 24. Nb5 {[%emt 0:13:14]} Bxb5 {[%emt 0:05:02]} 25. cxb5 {[%emt 0:00:11]} Rc5 {[%emt 0:01:07]} 26. Bf1 {[%emt 0:02:48]} d5 {[%emt 0:04:28]} 27. e5 {[%emt 0:06:04]} Ne8 {[%emt 0:00:47]} 28. Be3 {[%emt 0:02:13]} Rc4 {[%emt 0:11:50]} 29. Qd2 {[%emt 0:03:52]} Rxc1+ {[%emt 0:10:40]} 30. Rxc1 {[%emt 0:00:05]} Rd8 {[%emt 0:00:04]} 31. Qd4 {[%emt 0:05:28]} b3 32. a3 {[%emt 0:01:18]} Rc8 {[%emt 0:06:54]} 33. Rxc8 {[%emt 0:06:51]} Qxc8 {[%emt 0:00:01]} 34. Bd3 {[%emt 0:00:13]} f6 {[%emt 0:00:18]} 35. f4 {[%emt 0:00:45]} fxe5 {[%emt 0:00:01]} 36. fxe5 {[%emt 0:00:07]} Qb8 {[%emt 0:00:09]} 37. b6 {[%emt 0:01:56]} g6 {[%emt 0:00:33]} 38. Qxa4 {[%emt 0:02:02]} Ng7 {[%emt 0:00:05]} 39. Bd4 {[%emt 0:00:41]} Nf5 {[%emt 0:00:34]} 40. Bxf5 {[%emt 0:00:00]} 1-0

[Event "VII Totalizator Sportowy 2022"]
[Site "Bydgoszcz"]
[Date "2022.07.02"]
[Round "8.23"]
[White "Sliwicki, Damian"]
[Black "Kujawski, Adam"]
[Result "1/2-1/2"]
[ECO "C47"]
[WhiteElo "2168"]
[BlackElo "2246"]
[Annotator "TA"]
[PlyCount "326"]
[EventDate "2022.06.25"]
[EventType "swiss"]
[EventCountry "POL"]
[SourceTitle "playchess.com"]
[Source "ChessBase"]
[SourceQuality "1"]
[TimeControl "40/5400+30:1800+30"]

{[%evp 181,326,-68,-68,-68,-18,-18,-18,-68,-68,-68,-68,-68,-68,-68,-33,-33,-33,-33,-33,-33,-33,-33,-33,-96,-8,-12,-13,-13,-16,-16,-16,-33,0,0,0,0,0,0,0,0,0,0,0,-2,0,0,0,0,0,0,0,0,0,0,0,0,0,0,0,0,0,0,0,0,0,0,0,0,0,0,0,0,0,0,0,0,0,0,0,0,0,0,0,0,0,0,0,0,0,0,0,0,0,0,0,0,0,0,0,0,0,0,0,0,0,0,0,0,0,0,0,0,0,0,0,0,0,0,0,0,0,0,0,0,0,0,0,0,0,0,0,0,0,0,0,0,0,0,0,0,0,0,0,0,0,0,0]} 1. e4 {[%emt 0:09:23]} e5 {[%emt 0:00:21]} 2. Nf3 {[%emt 0:01:15]} Nc6 {[%emt 0:00:06]} 3. Nc3 {[%emt 0:02:21]} Nf6 {[%emt 0:02:39]} 4. a3 {[%emt 0:01:00]} d5 {[%emt 0:04:58]} 5. exd5 {[%emt 0:01:14]} Nxd5 {[%emt 0:00:08]} 6. Bb5 {[%emt 0:00:04]} Nxc3 {[%emt 0:00:24]} 7. bxc3 {[%emt 0:00:02]} Bd6 {[%emt 0:00:50]} 8. d4 {[%emt 0:00:05]} exd4 {[%emt 0:01:09]} 9. O-O {[%emt 0:00:33]} O-O {[%emt 0:06:27]} 10. Bg5 {[%emt 0:00:04]} f6 {[%emt 0:02:18]} 11. Bh4 {[%emt 0:00:03]} dxc3 {[%emt 0:01:55]} 12. Qd5+ {[%emt 0:00:23]} Kh8 {[%emt 0:03:03]} 13. Bxc6 {[%emt 0:00:05]} bxc6 {[%emt 0:00:20]} 14. Qxc6 {[%emt 0:00:05]} Be6 {[%emt 0:27:48]} 15. Bg3 {[%emt 0:20:00]} Qe8 {[%emt 0:01:20]} 16. Qxc3 {[%emt 0:00:13]} Qg6 {[%emt 0:01:46]} 17. Rad1 {[%emt 0:02:59]} Rad8 {[%emt 0:16:24]} 18. Bxd6 {[%emt 0:05:35]} cxd6 {[%emt 0:00:41]} 19. Nd4 {[%emt 0:12:00]} Bd5 {[%emt 0:11:44]} 20. Qh3 {[%emt 0:00:06]} Rfe8 {[%emt 0:02:25]} 21. f4 {[%emt 0:12:03]} Re3 {[%emt 0:03:05]} 22. f5 {[%emt 0:00:30]} Qg5 {[%emt 0:01:49]} 23. Nf3 {[%emt 0:01:53]} Bxf3 {[%emt 0:00:43]} 24. Rxf3 {[%emt 0:00:04]} Rde8 {[%emt 0:01:38]} 25. Rdf1 {[%emt 0:01:02]} h5 {[%emt 0:03:29]} 26. a4 {[%emt 0:00:35]} Kg8 {[%emt 0:01:24]} 27. Rg3 {[%emt 0:06:11]} Rxg3 {[%emt 0:00:22]} 28. Qxg3 {[%emt 0:00:04]} Qxg3 {[%emt 0:00:39]} 29. hxg3 {[%emt 0:00:01]} Re5 {[%emt 0:02:38]} 30. Rf4 {[%emt 0:02:16]} Rc5 {[%emt 0:00:08]} 31. Rd4 {[%emt 0:00:32]} Rxf5 {[%emt 0:00:25]} 32. Rxd6 {[%emt 0:00:09]} Rc5 {[%emt 0:00:52]} 33. Kf1 {[%emt 0:01:11]} a5 {[%emt 0:00:49]} 34. Ra6 {[%emt 0:01:50]} Kh7 {[%emt 0:00:34]} 35. c4 {[%emt 0:00:03]} Kg6 {[%emt 0:00:58]} 36. Ke2 {[%emt 0:00:03]} Rxc4 {[%emt 0:00:07]} 37. Rxa5 {[%emt 0:00:05]} Rc3 {[%emt 0:00:31]} 38. Kf2 {[%emt 0:00:09]} Ra3 {[%emt 0:00:14]} 39. Ra7 {[%emt 0:00:05]} Kh6 {[%emt 0:01:01]} 40. a5 {[%emt 0:00:00]} g6 {[%emt 0:00:00]} 41. Ra8 {[%emt 0:07:30]} Kg5 {[%emt 0:01:27]} 42. a6 {[%emt 0:02:58]} Kg4 {[%emt 0:03:01]} 43. a7 {[%emt 0:03:25]} Ra2+ {[%emt 0:01:03]} 44. Kf1 {[%emt 0:01:00]} Kf5 {[%emt 0:17:22]} 45. Kg1 {[%emt 0:00:40]} Ra3 {[%emt 0:02:06]} 46. Kh2 {[%emt 0:00:09]} Ra1 {[%emt 0:01:59]} 47. Rb8 {[%emt 0:00:04]} Rxa7 {[%emt 0:00:06]} 48. Rb5+ {[%emt 0:00:06]} Kg4 {[%emt 0:00:36]} 49. Rb6 {[%emt 0:00:12]} Kg5 {[%emt 0:00:20]} 50. Rb5+ {[%emt 0:00:05]} Kh6 {[%emt 0:01:54]} 51. Rb6 {[%emt 0:00:05]} Kg7 {[%emt 0:00:38]} 52. Rc6 {[%emt 0:00:11]} Ra1 {[%emt 0:01:27]} 53. Rc7+ {[%emt 0:00:08]} Kh6 {[%emt 0:00:09]} 54. Rc6 {[%emt 0:00:08]} Rf1 {[%emt 0:00:40]} 55. Rc5 {[%emt 0:00:14]} Rf5 {[%emt 0:01:03]} 56. Rc8 {[%emt 0:00:11]} Kg5 {[%emt 0:01:21]} 57. Rc4 {[%emt 0:00:06]} Re5 {[%emt 0:00:43]} 58. Rb4 {[%emt 0:00:09]} Rd5 {[%emt 0:00:59]} 59. Ra4 {[%emt 0:00:06]} Kf5 {[%emt 0:00:40]} 60. Rb4 {[%emt 0:00:04]} Ke5 {[%emt 0:01:54]} 61. Ra4 {[%emt 0:01:19]} Kf5 {[%emt 0:01:38]} 62. Rf4+ {[%emt 0:00:05]} Kg5 {[%emt 0:00:07]} 63. Ra4 {[%emt 0:00:04]} Rd3 {[%emt 0:00:13]} 64. Rb4 {[%emt 0:00:21]} Ra3 {[%emt 0:00:06]} 65. Rc4 {[%emt 0:00:05]} Rb3 {[%emt 0:00:04]} 66. Ra4 {[%emt 0:00:04]} Rb6 {[%emt 0:00:32]} 67. Rc4 {[%emt 0:00:08]} Rd6 {[%emt 0:00:33]} 68. Rb4 {[%emt 0:00:04]} f5 {[%emt 0:01:42]} 69. Ra4 {[%emt 0:00:05]} Rd3 {[%emt 0:00:28]} 70. Rb4 {[%emt 0:00:06]} Re3 {[%emt 0:00:06]} 71. Ra4 {[%emt 0:00:10]} Re4 {[%emt 0:00:37]} 72. Ra6 {[%emt 0:00:03]} Rg4 {[%emt 0:00:32]} 73. Rb6 {[%emt 0:00:37]} Rd4 {[%emt 0:00:26]} 74. Ra6 {[%emt 0:00:07]} Kh6 {[%emt 0:00:12]} 75. Rb6 {[%emt 0:00:06]} Kg7 {[%emt 0:00:07]} 76. Rb5 {[%emt 0:00:41]} Re4 {[%emt 0:00:20]} 77. Ra5 {[%emt 0:00:16]} Kf6 {[%emt 0:00:08]} 78. Ra6+ {[%emt 0:00:22]} Re6 {[%emt 0:00:04]} 79. Ra8 {[%emt 0:00:22]} Rd6 {[%emt 0:00:22]} 80. Rb8 {[%emt 0:00:23]} Rd7 {[%emt 0:00:40]} 81. Rb6+ {[%emt 0:00:10]} Kg5 {[%emt 0:00:04]} 82. Rb4 {[%emt 0:00:18]} Rh7 {[%emt 0:00:05]} 83. Rb6 {[%emt 0:00:10]} Re7 {[%emt 0:02:58]} 84. Rb4 {[%emt 0:00:16]} Kf6 {[%emt 0:00:26]} 85. Rb6+ {[%emt 0:00:17]} Re6 {[%emt 0:00:06]} 86. Rb8 {[%emt 0:00:21]} Re7 {[%emt 0:00:50]} 87. Rb6+ {[%emt 0:00:09]} Kg7 {[%emt 0:00:01]} 88. Rb5 {[%emt 0:00:30]} Rf7 {[%emt 0:01:02]} 89. Ra5 {[%emt 0:01:00]} g5 {[%emt 0:00:14]} 90. Rb5 {[%emt 0:00:15]} Kg6 {[%emt 0:00:07]} 91. Ra5 {[%emt 0:00:13]} g4 $1 {[%emt 0:00:48]} 92. Ra6+ {[%emt 0:01:02]} Kg5 {[%emt 0:00:06]} (92... Rf6 $15 93. Ra8 Kg7) 93. Ra8 $1 $11 {[%emt 0:00:09]} Rg7 {[%emt 0:00:17]} 94. Ra5 {[%emt 0:00:21]} (94. Rf8 $11) 94... Rg8 $15 {[%emt 0:01:01]} 95. Rb5 {[%emt 0:00:11]} Rh8 {[%emt 0:00:15]} 96. Ra5 {[%emt 0:00:49]} Rf8 {[%emt 0:00:41]} 97. Rb5 {[%emt 0:00:20]} h4 {[%emt 0:00:15]} 98. Ra5 {[%emt 0:00:53]} hxg3+ {[%emt 0:00:50]} 99. Kxg3 {[%emt 0:00:01]} Rd8 {[%emt 0:00:08]} 100. Rb5 {[%emt 0:00:40]} Rc8 {[%emt 0:00:21]} 101. Ra5 {[%emt 0:00:15]} Rc3+ {[%emt 0:00:05]} 102. Kf2 {[%emt 0:01:35] [#]} (102. Kh2 $1 $15) 102... Kf4 {[%emt 0:00:48]} (102... Kh4 $1 $17 {White must now prevent ...f4.} 103. Ra4 Rc2+ 104. Kg1 f4 105. Rxf4 Kg3) 103. Ra4+ $11 {[%emt 0:00:24]} Ke5 {[%emt 0:00:05]} 104. Ra5+ {[%emt 0:00:14]} Ke4 {[%emt 0:00:19]} 105. Ra4+ {[%emt 0:00:08]} Kd5 {[%emt 0:00:41]} 106. Ra8 {[%emt 0:03:43]} g3+ {[%emt 0:02:26]} 107. Ke2 $1 {[%emt 0:01:06]} Rb3 {[%emt 0:00:40]} 108. Ra5+ {[%emt 0:01:12]} Ke4 {[%emt 0:00:10]} 109. Ra4+ {[%emt 0:00:08]} Ke5 {[%emt 0:00:09]} 110. Ra5+ {[%emt 0:00:55]} Kf4 {[%emt 0:00:09]} 111. Ra4+ {[%emt 0:00:11]} Kg5 {[%emt 0:00:09]} 112. Rc4 $1 {[%emt 0:10:24]} f4 {[%emt 0:00:47]} 113. Rc8 {[%emt 0:01:30]} Re3+ {[%emt 0:01:42]} 114. Kf1 {[%emt 0:00:19]} Re5 {[%emt 0:00:15]} 115. Rg8+ {[%emt 0:06:36]} Kf5 {[%emt 0:00:03]} 116. Rf8+ {[%emt 0:00:10]} Kg4 {[%emt 0:00:02]} 117. Rg8+ $1 {[%emt 0:00:18]} Rg5 {[%emt 0:00:03]} 118. Ra8 {[%emt 0:00:15]} Rb5 {[%emt 0:00:59]} 119. Rg8+ {[%emt 0:00:10]} Kf5 {[%emt 0:00:08]} (119... Rg5 $5 {[%cal Rg5g8]} 120. Rh8 Rg6 $17) 120. Rf8+ {[%emt 0:00:12]} Ke4 {[%emt 0:00:12]} 121. Re8+ {[%emt 0:00:17]} Kd4 {[%emt 0:01:16]} 122. Rd8+ {[%emt 0:00:20]} Rd5 {[%emt 0:00:21]} 123. Rf8 {[%emt 0:00:51]} Ke3 {[%emt 0:00:21]} 124. Re8+ {[%emt 0:00:05]} Kd3 {[%emt 0:00:07]} 125. Rf8 {[%emt 0:00:13]} Rd4 {[%emt 0:00:41]} 126. Ra8 {[%emt 0:01:45]} Rd6 {[%emt 0:01:53]} 127. Rf8 {[%emt 0:00:17]} Rb6 {[%emt 0:00:57]} 128. Rd8+ {[%emt 0:00:05]} Ke4 {[%emt 0:00:10]} 129. Re8+ {[%emt 0:00:05]} Kd5 {[%emt 0:01:00]} 130. Rd8+ {[%emt 0:00:24]} Ke5 {[%emt 0:00:12]} 131. Re8+ {[%emt 0:00:08]} Re6 {[%emt 0:00:15]} 132. Ra8 {[%emt 0:00:21]} Kd4 {[%emt 0:01:11]} 133. Ra4+ {[%emt 0:00:46]} Ke3 {[%emt 0:00:04]} 134. Ra3+ {[%emt 0:01:02]} Ke4 {[%emt 0:00:16]} 135. Ra4+ {[%emt 0:00:05]} Kf5 {[%emt 0:00:04]} 136. Ra5+ {[%emt 0:00:23]} Re5 {[%emt 0:00:02]} 137. Ra8 $1 {[%emt 0:00:06]} Rc5 {[%emt 0:01:02]} 138. Rf8+ {[%emt 0:00:11]} Ke4 {[%emt 0:00:02]} 139. Re8+ {[%emt 0:00:07]} Re5 {[%emt 0:00:16]} 140. Ra8 $1 {[%emt 0:00:07]} Rd5 {[%emt 0:00:49]} 141. Re8+ {[%emt 0:00:10]} Kd3 {[%emt 0:00:04]} 142. Rf8 {[%emt 0:00:16]} Rd4 {[%emt 0:00:04]} 143. Ra8 $1 {[%emt 0:00:37]} Kd2 {[%emt 0:00:06]} 144. Rf8 {[%emt 0:00:44]} Re4 {[%emt 0:02:16]} 145. Rd8+ {[%emt 0:00:06]} Kc3 {[%emt 0:00:12]} 146. Rc8+ {[%emt 0:00:10]} Kd3 {[%emt 0:00:03]} 147. Rd8+ {[%emt 0:00:06]} Ke3 {[%emt 0:00:34]} 148. Ra8 {[%emt 0:01:05]} Rb4 {[%emt 0:01:55]} 149. Re8+ {[%emt 0:00:08]} Kd3 {[%emt 0:00:07]} 150. Rd8+ {[%emt 0:00:06]} Ke4 {[%emt 0:00:10]} 151. Re8+ {[%emt 0:00:06]} Kd5 {[%emt 0:00:42]} 152. Rd8+ {[%emt 0:00:05]} Ke6 {[%emt 0:00:06]} 153. Re8+ {[%emt 0:01:16]} Kf7 {[%emt 0:00:09]} 154. Ra8 {[%emt 0:00:36]} Rb2 {[%emt 0:00:16]} 155. Rc8 {[%emt 0:00:23]} Rf2+ {[%emt 0:00:12]} 156. Kg1 {[%emt 0:00:05]} Ke6 {[%emt 0:00:09]} 157. Re8+ {[%emt 0:00:08]} Kd5 {[%emt 0:00:18]} 158. Rd8+ {[%emt 0:00:06]} Ke4 {[%emt 0:00:12]} 159. Re8+ {[%emt 0:01:19]} Kd3 {[%emt 0:00:14]} 160. Rd8+ {[%emt 0:00:10]} Ke2 {[%emt 0:02:10]} 161. Re8+ {[%emt 0:00:14]} Kd1 {[%emt 0:00:09]} 162. Rd8+ $1 {[%emt 0:00:03]} Ke1 {[%emt 0:01:56]} 163. Re8+ {[%emt 0:00:09]} Re2 1/2-1/2